bitfinex-derivatives/quotes_BNBF0:USTF0_20251002
["timestamp","ask_amount","ask_price","bid_price","bid_amount"]
[1759427496702,0.84390236,1060.7,1059.1,2.05512407]
[1759427497300,0.84390236,1060.6,1059.1,2.05512407]
[1759427498205,0.84390236,1060.5,1059.1,2.05512407]
[1759427498605,0.84390236,1060.6,1059.1,2.05512407]
[1759427499607,0.84390236,1060.5,1059.1,2.05512407]
[1759427500409,0.84390236,1060.2,1059.1,2.05512407]
[1759427502311,0.84390236,1060.5,1059.1,2.05512407]
[1759427502606,0.84390236,1060.6,1059.1,2.05512407]
[1759427502813,0.84390236,1060.5,1059.1,2.05512407]
[1759427503012,0.84390236,1060.6,1059.1,2.05512407]
[1759427503915,0.84390236,1060.5,1059.1,2.05512407]
[1759427504214,0.84390236,1060.4,1059.1,2.05512407]
[1759427504616,0.84390236,1060.2,1059.1,2.05512407]
[1759427505518,0.84390236,1060.5,1059.1,2.05512407]
[1759427505718,0.84390236,1060.6,1059.1,2.05512407]
[1759427506814,0.84390236,1060.5,1059.1,2.05512407]
[1759427513322,0.84390236,1060.6,1059.1,2.05512407]
[1759427519631,0.84390236,1060.7,1059.1,2.05512407]
[1759427519830,0.84390236,1060.6,1059.1,2.05512407]
[1759427520230,0.84390236,1060.8,1059.1,2.05512407]
[1759427521832,0.84390236,1060.7,1059.1,2.05512407]
[1759427522228,0.84390236,1060.4,1059.1,2.05512407]
[1759427522432,0.84390236,1060.5,1059.1,2.05512407]
[1759427524435,0.84390236,1060.6,1059.1,2.68819301]
[1759427525233,0.84390236,1060.7,1059.1,2.05512407]
[1759427526438,0.84390236,1060.8,1059.1,2.68819301]
[1759427527340,0.84390236,1060.9,1059.2,0.63306894]
[1759427527540,0.84390236,1060.8,1059.2,0.63306894]
[1759427532043,0.84390236,1061.0,1059.1,2.68819301]
[1759427532244,0.84390236,1061.1,1059.1,2.68819301]
[1759427535347,0.84390236,1061.1,1059.2,0.63306894]
[1759427535843,0.84390236,1061.1,1059.1,2.68819301]
[1759427537048,0.84390236,1060.9,1059.2,0.63306894]
[1759427538846,0.84390236,1061.0,1059.2,0.63306894]
[1759427542349,0.84390236,1060.9,1059.2,0.63306894]
[1759427543158,0.84390236,1060.9,1059.3,0.63306894]
[1759427545759,0.84390236,1060.9,1059.2,0.63306894]
[1759427546155,0.84390236,1060.9,1059.3,0.63306894]
[1759427547456,0.84390236,1060.9,1059.2,0.63306894]
[1759427548062,0.84390236,1060.8,1059.3,0.63306894]
[1759427548256,0.84390236,1060.7,1059.1,2.68819301]
[1759427548958,0.84390236,1060.7,1059.2,0.63306894]
[1759427549662,0.84390236,1060.7,1059.3,0.63306894]
[1759427557063,0.84390236,1060.7,1059.2,0.63306894]
[1759427558568,0.84390236,1060.6,1059.2,0.63306894]
[1759427558868,0.84390236,1060.6,1059.1,2.68819301]
[1759427561772,0.84390236,1060.6,1059.2,0.63306894]
[1759427562169,0.84390236,1060.6,1059.1,2.68819301]
[1759427562372,0.84390236,1060.6,1059.2,0.63306894]
[1759427562768,0.84390236,1060.6,1059.1,2.68819301]
[1759427563170,0.84390236,1060.6,1059.2,0.63306894]
[1759427563370,0.84390236,1060.6,1059.2,2.53357541]
[1759427563673,0.84390236,1060.6,1059.2,2.53757541]
[1759427563972,0.84390236,1060.6,1059.2,1.90450647]
[1759427564269,0.84390236,1060.6,1059.2,2.53757541]
[1759427564672,0.84390236,1060.6,1059.2,1.90450647]
[1759427565173,0.84390236,1060.6,1059.2,2.53757541]
[1759427579082,0.84390236,1060.5,1059.2,2.53757541]
[1759427580784,0.84390236,1060.5,1059.2,1.90450647]
[1759427581880,0.84390236,1060.6,1059.2,1.90450647]
[1759427582280,0.84390236,1060.5,1059.2,1.90450647]
[1759427582583,0.84390236,1060.6,1059.2,1.90450647]
[1759427582986,0.84390236,1060.4,1059.2,1.90450647]
[1759427584687,0.84390236,1060.5,1059.2,1.90450647]
[1759427586091,0.84390236,1060.4,1059.2,1.90450647]
[1759427586292,0.84390236,1060.3,1059.2,1.90450647]
[1759427589694,0.84390236,1060.4,1059.2,1.90450647]
[1759427598902,0.84390236,1060.5,1059.2,1.90450647]
[1759427599606,0.84390236,1060.4,1059.2,1.90450647]
[1759427602604,0.84390236,1060.3,1059.2,1.90450647]
[1759427603005,0.84390236,1060.2,1059.2,1.90450647]
[1759427605206,0.84390236,1060.1,1059.2,1.90450647]
[1759427605509,0.84390236,1060.2,1059.2,1.90450647]
[1759427607805,0.84390236,1060.1,1059.2,1.90450647]
[1759427608109,0.84390236,1060.0,1059.2,1.90450647]
[1759427608305,0.84390236,1060.1,1059.2,1.90450647]
[1759427609209,0.84390236,1060.2,1059.2,1.90450647]
[1759427614811,0.84390236,1060.1,1059.2,1.90450647]
[1759427615816,0.84390236,1060.3,1059.2,1.90450647]
[1759427624022,0.84390236,1060.2,1059.2,1.90450647]
[1759427630627,0.84390236,1060.1,1059.2,1.90450647]
[1759427630828,0.84390236,1060.0,1059.2,1.90450647]
[1759427633024,0.84390236,1059.9,1059.2,1.90450647]
[1759427634530,0.84390236,1060.0,1059.2,1.90450647]
[1759427634831,0.84390236,1060.1,1059.2,1.90450647]
[1759427636830,0.84390236,1060.0,1059.2,1.90450647]
[1759427644739,0.84390236,1059.9,1059.2,1.90450647]
[1759427644942,0.84390236,1060.0,1059.2,1.90450647]
[1759427645540,0.84390236,1059.9,1059.2,1.90450647]
[1759427653044,0.84390236,1060.0,1059.2,1.90450647]
[1759427655446,0.84390236,1059.9,1059.2,1.90450647]
[1759427656145,0.84390236,1060.1,1059.2,1.90050647]
[1759427656742,0.84390236,1060.1,1058.9,1.86826138]
[1759427656942,0.84390236,1059.7,1058.9,1.86826138]
[1759427657140,0.84390236,1059.8,1058.9,1.86826138]
[1759427657339,0.84390236,1059.7,1058.9,1.86826138]
[1759427657645,0.84390236,1059.6,1058.9,1.86826138]
[1759427657946,0.84390236,1059.8,1058.9,1.86826138]
[1759427658542,0.84390236,1059.7,1058.9,1.86826138]
[1759427659247,0.84390236,1059.8,1058.9,1.86826138]
[1759427659443,0.84390236,1059.7,1058.9,1.86826138]
[1759427660444,0.84390236,1059.8,1058.9,1.86826138]
[1759427661645,0.84390236,1059.7,1058.9,1.86826138]
[1759427661850,0.84390236,1059.8,1058.9,1.86826138]
[1759427663551,0.84390236,1059.7,1058.9,1.86826138]
[1759427665756,0.84390236,1059.8,1058.9,1.86826138]
[1759427665959,0.84390236,1059.9,1058.9,1.86826138]
[1759427670164,0.84390236,1059.8,1058.9,1.86826138]
[1759427670465,0.84390236,1059.7,1058.9,1.86826138]
[1759427676264,0.84390236,1059.8,1058.9,1.86826138]
[1759427678264,0.84390236,1059.9,1058.9,1.86826138]
[1759427679265,0.84390236,1059.8,1058.9,1.86826138]
[1759427682169,0.84390236,1059.7,1058.9,1.86826138]
[1759427683566,0.84390236,1059.5,1058.9,1.86826138]
[1759427684567,0.84390236,1059.6,1058.9,1.86826138]
[1759427690174,0.84390236,1059.7,1058.9,1.86826138]
[1759427694882,0.84390236,1059.6,1058.9,1.86826138]
[1759427697586,0.84390236,1059.7,1058.9,1.86826138]
[1759427703390,0.84390236,1059.7,1058.6,0.16425593]
[1759427703591,0.84390236,1059.7,1058.6,0.7987671]
[1759427703790,0.84390236,1059.8,1058.6,0.16425593]
[1759427704690,0.84390236,1059.7,1058.6,0.16425593]
[1759427705694,0.84390236,1059.8,1058.6,0.16425593]
[1759427705890,0.84390236,1060.0,1058.6,0.16425593]
[1759427706094,0.84390236,1059.7,1058.6,0.7987671]
[1759427706294,0.84390236,1059.8,1058.7,0.63451117]
[1759427707492,0.84390236,1059.9,1058.7,0.63451117]
[1759427710397,0.84390236,1059.9,1058.6,0.7987671]
[1759427711594,0.84390236,1059.9,1058.7,0.63451117]
[1759427713800,1.00815712,1060.2,1058.6,0.7987671]
[1759427722509,0.84390236,1060.0,1058.7,0.63451117]
[1759427724111,0.84390236,1059.9,1058.7,0.63451117]
[1759427724311,0.84390236,1060.0,1058.7,0.63451117]
[1759427724713,0.84390236,1059.9,1058.7,0.63451117]
[1759427726717,0.84390236,1060.0,1058.6,0.7987671]
[1759427728117,1.00815712,1060.2,1058.6,0.16425593]
[1759427728413,0.84390236,1060.0,1058.6,0.16425593]
[1759427731313,0.84390236,1059.9,1058.6,0.16425593]
[1759427734823,0.84390236,1059.8,1058.6,0.16425593]
[1759427737425,0.84390236,1059.7,1058.6,0.16425593]
[1759427740020,0.84390236,1059.6,1058.6,0.16425593]
[1759427740821,0.84390236,1059.9,1058.6,0.16425593]
[1759427745524,0.84390236,1060.0,1058.6,0.16425593]
[1759427745929,0.84390236,1059.9,1058.6,0.16425593]
[1759427746127,0.84390236,1059.8,1058.6,0.16425593]
[1759427746625,0.84390236,1059.7,1058.6,0.16425593]
[1759427749927,0.84390236,1060.1,1058.6,0.16425593]
[1759427750130,0.16425476,1060.2,1058.6,0.16425593]
[1759427759837,0.84390236,1060.1,1058.6,0.7987671]
[1759427761238,0.84390236,1060.0,1058.6,0.7987671]
[1759427761842,0.84390236,1060.1,1058.7,0.63451117]
[1759427764040,0.84390236,1060.2,1058.7,0.63451117]
[1759427764242,0.84390236,1060.1,1058.7,0.63451117]
[1759427764438,0.84390236,1060.3,1058.8,0.63451117]
[1759427765339,0.84390236,1060.2,1058.8,0.63451117]
[1759427765642,0.84390236,1060.3,1058.9,0.63451117]
[1759427770939,0.84390236,1060.4,1058.9,0.63451117]
[1759427771644,0.84390236,1060.5,1058.9,0.63451117]
[1759427773742,0.84390236,1060.5,1059.0,0.63451117]
[1759427773947,0.84390236,1060.6,1058.9,0.63451117]
[1759427774746,0.84390236,1060.6,1059.0,0.63451117]
[1759427776243,0.84390236,1060.7,1059.0,0.63451117]
[1759427777144,0.84390236,1060.7,1058.9,0.63451117]
[1759427778948,0.84390236,1060.7,1059.1,0.63451117]
[1759427779344,0.84390236,1060.8,1059.1,0.63451117]
[1759427781151,0.84390236,1060.8,1058.9,0.84191874]
[1759427781152,0.84390236,1060.9,1059.2,0.63451117]
[1759427781352,0.84390236,1060.9,1059.1,2.48421253]
[1759427782951,0.84390236,1061.0,1059.1,2.48421253]
[1759427783152,1.00802892,1061.0,1059.1,2.48421253]
[1759427785149,0.84390236,1060.9,1059.1,2.48421253]
[1759427785348,1.00802892,1061.0,1059.1,2.48421253]
[1759427786150,1.00802892,1061.0,1059.1,1.84970136]
[1759427788154,0.16412656,1061.0,1059.1,1.84970136]
[1759427790656,1.00802892,1061.0,1059.1,1.84970136]
[1759427792655,0.84390236,1060.9,1059.1,1.84970136]
[1759427795662,0.84390236,1060.8,1059.1,1.84970136]
[1759427796061,0.84390236,1060.9,1059.1,1.84970136]
[1759427796463,0.84390236,1060.8,1059.1,1.84970136]
[1759427802472,0.84390236,1060.7,1059.1,1.84970136]
[1759427803975,0.84390236,1060.6,1059.1,1.84970136]
[1759427807278,0.84390236,1060.7,1059.1,1.84970136]
[1759427817083,0.84390236,1060.6,1059.1,1.84970136]
[1759427818084,0.84390236,1060.5,1059.1,2.48421253]
[1759427819581,0.84390236,1060.7,1059.1,1.84970136]
[1759427820287,0.84390236,1060.7,1059.1,2.48421253]
[1759427821089,0.84390236,1060.6,1059.1,2.48421253]
[1759427821685,0.84390236,1060.7,1059.1,2.48421253]
[1759427821888,0.84390236,1060.6,1059.1,2.48421253]
[1759427822086,0.84390236,1060.6,1059.3,0.63451117]
[1759427822385,0.84390236,1060.7,1059.3,0.63451117]
[1759427823086,0.84390236,1060.8,1059.4,0.63451117]
[1759427823285,0.84390236,1060.7,1059.4,0.63451117]
[1759427823691,0.84390236,1060.8,1059.3,0.63451117]
[1759427825192,0.84390236,1060.8,1059.4,0.63451117]
[1759427825488,0.84390236,1060.8,1059.3,0.63451117]
[1759427826191,0.84390236,1060.8,1059.4,0.63451117]
[1759427826690,0.84390236,1060.8,1059.3,0.63451117]
[1759427829190,0.84390236,1060.8,1059.4,0.63451117]
[1759427833596,0.84390236,1060.7,1059.4,0.63451117]
[1759427839101,0.84390236,1060.9,1059.3,0.63451117]
[1759427839401,0.84390236,1060.8,1059.2,0.63851117]
[1759427839602,0.84390236,1060.5,1059.3,0.63451117]
[1759427839802,0.84390236,1060.4,1059.2,0.63851117]
[1759427849411,0.84390236,1060.3,1059.2,0.63851117]
[1759427849712,0.84390236,1060.4,1059.2,0.63851117]
[1759427850109,0.84390236,1060.3,1059.2,0.63851117]
[1759427850608,0.84390236,1060.4,1059.2,0.63851117]
[1759427852715,0.84390236,1060.3,1059.2,0.63851117]
[1759427853914,0.84390236,1060.4,1059.2,0.63851117]
[1759427860216,0.84390236,1060.4,1059.2,0.004]
[1759427860421,0.84390236,1060.4,1059.2,0.63851117]
[1759427861622,0.84390236,1060.4,1059.2,0.004]
[1759427863521,0.84390236,1060.4,1059.2,0.63851117]
[1759427864020,0.84390236,1060.4,1059.2,0.004]
[1759427864524,0.84390236,1060.3,1059.2,0.004]
[1759427872226,0.84390236,1060.5,1059.2,0.004]
[1759427874229,0.84390236,1060.4,1059.2,0.004]
[1759427877032,0.84390236,1060.5,1059.2,0.004]
[1759427878130,0.84390236,1060.4,1059.2,0.004]
[1759427879332,0.84390236,1060.3,1059.2,0.004]
[1759427880934,0.84390236,1060.4,1059.2,0.004]
[1759427887347,0.84390236,1060.3,1059.2,0.004]
[1759427889247,0.84390236,1060.2,1059.2,0.004]
[1759427889749,0.84390236,1060.3,1059.2,0.004]
[1759427894350,0.84390236,1060.2,1059.2,0.004]
[1759427896148,0.84390236,1060.3,1059.2,0.004]
[1759427903156,0.84390236,1060.2,1059.2,0.004]
[1759427912667,0.84390236,1060.1,1059.2,0.004]
[1759427914466,0.84390236,1060.2,1059.2,0.004]
[1759427914770,0.84390236,1060.1,1059.2,0.004]
[1759427915268,0.84390236,1060.2,1059.2,0.004]
[1759427916171,0.84390236,1060.1,1059.2,0.004]
[1759427921969,0.84390236,1060.2,1059.2,0.004]
[1759427923073,0.84390236,1060.0,1059.2,0.004]
[1759427924275,0.84390236,1060.1,1059.2,0.004]
[1759427930880,0.84390236,1060.2,1059.2,0.63950861]
[1759427931577,0.84390236,1060.3,1059.2,0.004]
[1759427934787,0.84390236,1060.4,1059.2,0.004]
[1759427936591,0.84390236,1060.3,1059.2,0.63950861]
[1759427937092,0.84390236,1060.3,1059.2,0.004]
[1759427937488,0.84390236,1060.4,1059.2,0.004]
[1759427937891,0.84390236,1060.5,1059.2,0.004]
[1759427941694,0.84390236,1060.6,1059.2,0.004]
[1759427943397,0.84390236,1060.6,1059.0,0.63550861]
[1759427943997,0.84390236,1060.5,1059.0,0.63550861]
[1759427946896,0.84390236,1060.4,1059.0,0.63550861]
[1759427947502,0.84390236,1060.5,1058.9,2.5273797]
[1759427948799,0.84390236,1060.4,1058.9,2.5273797]
[1759427950699,0.84390236,1060.4,1058.9,1.89187109]
[1759427952604,0.84390236,1060.2,1058.9,2.5273797]
[1759427957009,0.84390236,1060.1,1058.9,2.5273797]
[1759427963310,0.84390236,1060.1,1059.0,0.63550861]
[1759427965918,0.84390236,1060.4,1058.9,1.89187109]
[1759427967112,0.84390236,1060.4,1058.9,2.5273797]
[1759427967317,0.84390236,1060.5,1058.9,1.89187109]
[1759427967517,0.84390236,1060.5,1058.9,2.5273797]
[1759427968114,0.84390236,1060.2,1059.0,0.63550861]
[1759427971019,0.84390236,1060.5,1058.9,2.5273797]
[1759427971518,0.84390236,1060.4,1058.9,2.5273797]
[1759427972118,0.84390236,1060.4,1058.9,1.89187109]
[1759427973118,0.84390236,1060.5,1058.9,1.89187109]
[1759427973423,0.84390236,1060.4,1058.9,1.89187109]
[1759427973921,0.84390236,1060.5,1058.9,1.89187109]
[1759427974320,0.84390236,1060.3,1058.9,2.5273797]
[1759427974819,0.84390236,1060.2,1059.0,0.63550861]
[1759427976420,0.84390236,1060.1,1059.0,0.63550861]
[1759427977226,0.84390236,1060.2,1059.0,0.63550861]
[1759427983431,0.84390236,1060.2,1059.0,0.79970564]
[1759427989331,0.84390236,1060.1,1059.0,0.79970564]
[1759427990237,0.84390236,1060.2,1059.0,0.79984767]
[1759427993937,0.84390236,1060.1,1059.0,0.79984767]
[1759427994240,0.84390236,1060.2,1059.0,0.79984767]
[1759427995435,0.84390236,1060.1,1059.0,0.79984767]
[1759427996139,0.84390236,1060.2,1059.0,0.79984767]
[1759427999740,0.84390236,1060.1,1059.0,0.79984767]
[1759428000943,0.84390236,1060.1,1059.1,0.63565064]
[1759428003745,0.84390236,1060.2,1059.0,0.79984767]
[1759428004745,0.84390236,1060.3,1059.0,0.79984767]
[1759428006446,0.84390236,1060.2,1059.0,0.79984767]
[1759428006642,0.84390236,1060.3,1059.0,0.79984767]
[1759428009247,0.84390236,1060.1,1059.0,0.79984767]
[1759428013748,0.84390236,1060.2,1059.1,0.63565064]
[1759428014444,0.84390236,1060.1,1059.1,0.63565064]
[1759428014746,0.84390236,1060.2,1059.1,0.63565064]
[1759428016848,0.84390236,1060.3,1059.2,0.63565064]
[1759428017450,0.84390236,1060.2,1059.3,0.63565064]
[1759428017649,0.84390236,1060.4,1059.3,0.63565064]
[1759428017846,0.84390236,1060.3,1059.4,0.63565064]
[1759428018946,0.84390236,1060.4,1059.4,0.63565064]
[1759428020346,0.84390236,1060.4,1059.3,0.63565064]
[1759428021450,0.84390236,1060.5,1059.3,0.63565064]
[1759428022052,0.84390236,1060.4,1059.3,0.63565064]
[1759428022247,0.84390236,1060.5,1059.3,0.63565064]
[1759428030355,0.84390236,1060.5,1059.2,0.63565064]
[1759428032654,0.84390236,1060.6,1059.2,0.63565064]
[1759428033656,0.84390236,1060.5,1059.2,0.63565064]
[1759428034058,0.84390236,1060.5,1059.3,0.63565064]
[1759428034561,0.84390236,1060.6,1059.3,0.63565064]
[1759428035259,0.84390236,1060.6,1059.4,0.63565064]
[1759428037560,0.84390236,1060.6,1059.2,0.83791874]
[1759428037561,0.84390236,1060.7,1059.3,0.63565064]
[1759428047671,0.84390236,1060.8,1059.3,0.63565064]
[1759428053880,0.84390236,1060.8,1059.1,2.23395141]
[1759428054081,0.84390236,1060.7,1059.1,2.23395141]
[1759428054485,0.84390236,1060.7,1059.1,1.59830077]
[1759428054682,0.84390236,1060.7,1059.1,2.23145468]
[1759428056689,0.84390236,1060.6,1059.1,2.23145468]
[1759428060691,0.84390236,1060.7,1059.2,0.63315391]
[1759428061392,0.84390236,1060.6,1059.3,0.63315391]
[1759428061887,0.84390236,1060.7,1059.3,0.63315391]
[1759428062591,0.84390236,1060.7,1059.4,0.63315391]
[1759428065695,0.84390236,1060.9,1059.3,0.63315391]
[1759428065895,0.84390236,1060.9,1059.4,0.63315391]
[1759428066694,0.84390236,1060.9,1059.3,0.63315391]
[1759428067297,0.84390236,1060.9,1059.1,2.43621951]
[1759428067298,0.84390236,1060.9,1059.4,0.63315391]
[1759428069798,0.84390236,1060.8,1059.4,0.63315391]
[1759428070098,0.84390236,1060.8,1059.1,2.23145468]
[1759428070394,0.84390236,1060.8,1059.2,0.63315391]
[1759428070593,0.84390236,1060.8,1059.1,2.23145468]
[1759428071197,0.84390236,1060.8,1059.2,0.63315391]
[1759428071395,0.84390236,1060.7,1059.2,0.63315391]
[1759428071595,0.84390236,1060.8,1059.2,0.63315391]
[1759428072496,0.84390236,1060.7,1059.2,0.63315391]
[1759428073198,0.84390236,1060.6,1059.1,2.23145468]
[1759428073398,0.84390236,1060.4,1059.1,1.59830077]
[1759428074499,0.84390236,1060.2,1059.1,2.23145468]
[1759428076101,0.84390236,1060.3,1059.1,2.23145468]
[1759428076299,0.84390236,1060.2,1059.1,2.23145468]
[1759428076497,0.84390236,1060.3,1059.1,2.23145468]
[1759428079303,0.84390236,1060.3,1059.1,1.59830077]
[1759428079502,0.84390236,1060.3,1059.1,1.38624588]
[1759428079706,0.84390236,1060.3,1059.1,1.39024588]
[1759428082305,0.84390236,1060.4,1059.1,1.39024588]
[1759428082806,0.84390236,1060.3,1059.1,1.39024588]
[1759428083006,0.84390236,1060.3,1059.0,0.79735094]
[1759428084506,0.84390236,1060.3,1059.1,1.39126583]
[1759428084708,0.84390236,1060.3,1059.1,1.39526583]
[1759428087405,0.84390236,1060.2,1059.1,1.39526583]
[1759428092410,0.84390236,1060.3,1059.1,1.39526583]
[1759428093916,0.84390236,1060.4,1059.1,1.39526583]
[1759428094812,0.84390236,1060.5,1059.1,1.39526583]
[1759428095215,0.84390236,1060.4,1059.1,1.39526583]
[1759428097320,0.84390236,1060.5,1059.1,2.02841974]
[1759428098820,0.16412346,1061.0,1059.1,2.02841974]
[1759428098821,0.84390236,1060.4,1059.1,2.02841974]
[1759428100319,0.84390236,1060.5,1059.1,2.02841974]
[1759428100722,0.84390236,1060.4,1059.1,2.02841974]
[1759428102824,0.84390236,1060.6,1059.1,2.02841974]
[1759428104822,0.84390236,1060.6,1059.3,0.63315391]
[1759428105723,1.00802582,1061.0,1059.3,0.63315391]
[1759428109427,1.00802582,1061.0,1059.1,1.39526583]
[1759428109625,0.84390236,1060.9,1059.3,0.63338752]
[1759428109829,0.84390236,1060.9,1059.4,1.16882031]
[1759428110024,0.84390236,1060.9,1059.4,1.17282031]
[1759428110323,0.84390236,1060.8,1059.4,1.17282031]
[1759428113730,0.84390236,1060.9,1059.4,1.17282031]
[1759428113930,0.84390236,1060.8,1059.4,1.17282031]
[1759428114232,0.84390236,1060.6,1059.4,1.17282031]
[1759428117837,0.84390236,1060.7,1059.4,1.17282031]
[1759428125041,0.84390236,1060.8,1059.4,1.17282031]
[1759428126141,0.84390236,1060.7,1059.4,1.17282031]
[1759428126645,0.84390236,1060.8,1059.4,1.17282031]
[1759428127641,0.84390236,1060.7,1059.4,1.17282031]
[1759428128746,0.84390236,1060.7,1059.4,1.80620783]
[1759428129240,2.1097559,1060.8,1059.4,1.80620783]
[1759428129444,0.84390236,1060.8,1059.4,1.80620783]
[1759428134252,0.84390236,1060.9,1059.4,1.80620783]
[1759428134752,0.84390236,1060.8,1059.4,1.80620783]
[1759428134949,1.429977,1061.0,1059.4,1.80620783]
[1759428134950,0.84390236,1060.9,1059.4,1.80620783]
[1759428135454,1.00802582,1061.0,1059.4,1.80620783]
[1759428135848,0.16412346,1061.0,1059.4,1.80620783]
[1759428136751,0.84390236,1061.3,1059.5,0.63338752]
[1759428136952,1.007991,1061.3,1059.5,0.63338752]
[1759428137653,1.007991,1061.3,1059.6,0.63338752]
[1759428137849,0.84390236,1061.2,1059.6,0.63338752]
[1759428138056,0.84390236,1061.1,1059.6,0.63338752]
[1759428138254,0.84390236,1061.2,1059.6,0.63338752]
[1759428139053,0.84390236,1061.1,1059.6,0.63338752]
[1759428140353,0.84390236,1061.2,1059.6,0.63338752]
[1759428140554,0.84390236,1061.1,1059.6,0.63338752]
[1759428142855,0.84390236,1061.2,1059.6,0.63338752]
[1759428143557,0.84390236,1061.2,1059.5,0.63338752]
[1759428147962,0.16408864,1061.3,1059.5,0.63338752]
[1759428147963,1.007991,1061.3,1059.5,0.63338752]
[1759428156065,1.007991,1061.3,1059.6,0.63338752]
[1759428156762,0.84390236,1061.2,1059.6,0.63338752]
[1759428157565,1.007991,1061.3,1059.6,0.63338752]
[1759428157869,1.007991,1061.3,1059.5,0.63338752]
[1759428158067,0.84390236,1061.2,1059.6,0.63338752]
[1759428158268,1.007991,1061.3,1059.6,0.63338752]
[1759428158468,1.007991,1061.3,1059.7,0.63338752]
[1759428165074,1.007991,1061.3,1059.8,0.63338752]
[1759428167373,0.84390236,1061.3,1059.8,0.63338752]
[1759428167778,0.16404455,1061.5,1059.7,0.63338752]
[1759428168075,0.84390236,1061.5,1059.7,0.63338752]
[1759428168278,0.84390236,1061.6,1059.7,0.63338752]
[1759428168680,0.84390236,1062.1,1060.2,0.63338752]
[1759428168983,0.16399893,1062.0,1060.2,0.63338752]
[1759428169180,0.16399893,1062.0,1060.1,0.63338752]
[1759428171282,0.16399893,1062.0,1060.0,0.63338752]
[1759428174591,0.16399893,1062.0,1060.1,0.63338752]
[1759428175288,0.16399893,1062.0,1060.0,0.63338752]
[1759428178193,0.84390236,1062.1,1060.1,0.63338752]
[1759428181895,0.16395567,1062.2,1059.9,0.63338752]
[1759428182396,0.16395567,1062.2,1059.9,0.62829926]
[1759428186798,0.16395567,1062.2,1060.0,0.62829926]
[1759428187198,0.16395567,1062.2,1060.1,0.62829926]
[1759428190204,1.00785803,1062.2,1060.1,0.62829926]
[1759428190400,0.16395567,1062.2,1060.1,0.62829926]
[1759428194204,0.16395567,1062.2,1060.2,0.62829926]
[1759428194407,0.16395567,1062.2,1059.5,0.16394099]
[1759428194408,0.16395567,1062.2,1060.3,0.62829926]
[1759428194907,0.84390236,1062.4,1060.2,0.62829926]
[1759428195408,1.0078171,1062.5,1060.2,0.62829926]
[1759428196504,1.0078171,1062.5,1060.3,0.62829926]
[1759428197008,0.84390236,1062.4,1060.3,0.62829926]
[1759428197507,1.0078171,1062.5,1060.4,0.62829926]
[1759428198204,0.84390236,1062.4,1060.4,0.62829926]
[1759428198406,1.0078171,1062.5,1060.4,0.62829926]
[1759428198906,0.84390236,1062.4,1060.4,0.62829926]
[1759428199105,1.0078171,1062.5,1060.4,0.62829926]
[1759428202309,0.16391474,1062.5,1060.4,0.62829926]
[1759428203507,0.16391474,1062.5,1060.5,0.62829926]
[1759428204912,0.84390236,1062.7,1060.5,0.62829926]
[1759428205208,1.00777927,1062.7,1060.5,0.62829926]
[1759428207410,0.16387691,1062.7,1060.5,0.62829926]
[1759428208711,1.00777927,1062.7,1060.5,0.62829926]
[1759428209817,0.16387691,1062.7,1060.6,0.62829926]
[1759428210419,0.84390236,1063.6,1060.7,1.12461915]
[1759428210616,0.84390236,1063.9,1060.7,1.12861915]
[1759428210820,0.16383448,1063.1,1060.7,1.12861915]
[1759428211017,0.16383448,1063.1,1060.8,0.62829926]
[1759428211318,0.16383448,1063.1,1061.0,0.62829926]
[1759428213021,0.16383448,1063.1,1060.9,0.62829926]
[1759428213822,0.84390236,1063.3,1060.9,0.62829926]
[1759428214125,0.16378976,1063.3,1060.9,0.62829926]
[1759428214920,0.16378976,1063.3,1060.7,1.75691841]
[1759428215125,0.16378976,1063.3,1060.7,1.12861915]
[1759428216328,0.16378976,1063.3,1060.7,1.75691841]
[1759428216528,0.84390236,1063.2,1060.9,0.62829926]
[1759428217028,1.00769212,1063.3,1060.9,0.62829926]
[1759428217627,0.16378976,1063.3,1060.9,0.62829926]
[1759428217831,0.16378976,1063.3,1061.0,0.62829926]
[1759428218628,0.84390236,1063.7,1061.0,0.62829926]
[1759428218829,0.84390236,1063.7,1061.3,0.62829926]
[1759428219028,0.16374891,1063.7,1061.4,0.62829926]
[1759428219228,0.16374891,1063.7,1061.1,0.62829926]
[1759428219429,0.16374891,1063.7,1061.2,0.62829926]
[1759428220433,0.16374891,1063.7,1061.1,0.62829926]
[1759428222736,0.16374891,1063.7,1061.2,0.62829926]
[1759428223439,0.16374891,1063.7,1061.1,0.62829926]
[1759428223834,0.16374891,1063.7,1061.2,0.62829926]
[1759428228040,0.16374891,1063.7,1061.1,0.62829926]
[1759428228237,0.16374891,1063.7,1061.0,0.62829926]
[1759428230040,0.16374891,1063.7,1061.1,0.62829926]
[1759428230340,0.16374891,1063.7,1061.0,0.62829926]
[1759428232537,0.16374891,1063.7,1060.9,0.62829926]
[1759428234341,0.16374891,1063.7,1060.8,0.62829926]
[1759428234540,1.00765127,1063.7,1060.7,1.75691841]
[1759428234846,1.00765127,1063.7,1060.7,1.12861915]
[1759428235243,0.84390236,1063.6,1060.7,1.75691841]
[1759428235444,0.84390236,1063.6,1060.7,1.12861915]
[1759428235740,0.84390236,1063.4,1060.7,1.12861915]
[1759428236143,0.84390236,1063.3,1060.7,1.12861915]
[1759428236444,0.84390236,1063.4,1060.7,1.12861915]
[1759428237945,0.84390236,1063.5,1060.7,1.12861915]
[1759428239542,0.84390236,1063.4,1060.7,1.12861915]
[1759428239846,0.84390236,1063.5,1060.7,1.12861915]
[1759428241848,0.84390236,1063.4,1060.7,1.12861915]
[1759428242045,0.84390236,1063.5,1060.7,1.12861915]
[1759428242446,0.84390236,1063.4,1060.7,1.12861915]
[1759428242649,0.84390236,1063.5,1060.7,1.12861915]
[1759428243351,0.84390236,1063.4,1060.7,1.12861915]
[1759428243549,0.84390236,1063.5,1060.7,1.12861915]
[1759428243751,0.84390236,1063.4,1060.7,1.12861915]
[1759428244252,0.84390236,1063.5,1060.7,1.12861915]
[1759428244453,0.84390236,1063.4,1060.7,1.12861915]
[1759428246853,0.84390236,1063.3,1060.7,1.12861915]
[1759428247456,0.84390236,1063.2,1060.7,1.12861915]
[1759428247953,0.84390236,1063.3,1060.7,1.12861915]
[1759428248555,0.84390236,1063.2,1060.7,1.12861915]
[1759428249353,0.84390236,1063.2,1060.7,1.75691841]
[1759428252366,0.84390236,1063.2,1060.8,0.62829926]
[1759428252868,0.84390236,1063.1,1060.7,1.75691841]
[1759428253265,0.84390236,1063.1,1060.8,0.62829926]
[1759428256464,0.84390236,1063.2,1060.9,0.62829926]
[1759428257968,0.84390236,1063.2,1060.7,1.96653789]
[1759428257969,0.84390236,1063.1,1061.2,0.62829926]
[1759428258469,0.84390236,1063.2,1061.3,0.62829926]
[1759428258665,0.84390236,1063.3,1061.3,0.62829926]
[1759428259366,0.84390236,1063.3,1061.4,0.62829926]
[1759428259568,0.84390236,1063.4,1061.3,0.62829926]
[1759428260270,0.84390236,1063.4,1061.5,0.62829926]
[1759428260469,0.84390236,1063.6,1061.7,0.62829926]
[1759428260669,0.84390236,1063.6,1061.6,0.62829926]
[1759428260868,1.00765127,1063.7,1061.7,0.62829926]
[1759428261370,1.00765127,1063.7,1061.8,0.62829926]